[Event "Titled Tuesday Blitz June 13 Early 2023"]
[White "Zaitsev, Alexander"]
[Black "Ardila, Oscar Humberto"]
[WhiteFideId "4164490"]
[BlackFideId "4404742"]
[WhiteElo "2373"]
[BlackElo "1912"]
[Result "1-0"]
[Round "6"]
[TimeControl "180+2"]
[Date "2023.06.13"]
[WhiteClock "0:01:15"]
[BlackClock "0:01:12"]
[Board "163"]

1. e4 {[%clk 0:03:00]}  e5 {[%clk 0:03:00]} 2. Nc3 {[%clk 0:03:00]}  Nf6 {[%clk 0:03:00]} 3. Bc4 {[%clk 0:03:00]}  Nc6 {[%clk 0:03:00]} 4. d3 {[%clk 0:03:00]}  Bb4 {[%clk 0:03:01]} 5. Ne2 {[%clk 0:03:00]}  d6 {[%clk 0:03:01]} 6. O-O {[%clk 0:02:59]}  O-O {[%clk 0:03:01]} 7. Bg5 {[%clk 0:02:59]}  h6 {[%clk 0:03:02]} 8. Bh4 {[%clk 0:02:47]}  Be6 {[%clk 0:02:58]} 9. Kh1 {[%clk 0:02:32]}  g5 {[%clk 0:02:58]} 10. Bg3 {[%clk 0:02:31]}  Bxc4 {[%clk 0:02:58]} 11. dxc4 {[%clk 0:02:32]}  Kg7 {[%clk 0:02:57]} 12. f3 {[%clk 0:02:27]}  Nh5 {[%clk 0:02:56]} 13. Bf2 {[%clk 0:02:26]}  Ba5 {[%clk 0:02:51]} 14. Nd5 {[%clk 0:02:21]}  Ne7 {[%clk 0:02:46]} 15. c5 {[%clk 0:02:16]}  Nxd5 {[%clk 0:02:42]} 16. Qxd5 {[%clk 0:02:13]}  Nf6 {[%clk 0:02:34]} 17. Qxb7 {[%clk 0:02:11]}  Qb8 {[%clk 0:02:29]} 18. Qa6 {[%clk 0:02:01]}  Bb4 {[%clk 0:02:24]} 19. cxd6 {[%clk 0:01:55]}  Bxd6 {[%clk 0:02:24]} 20. b3 {[%clk 0:01:50]}  h5 {[%clk 0:02:24]} 21. Ng3 {[%clk 0:01:47]}  Kg6 {[%clk 0:02:22]} 22. Nf5 {[%clk 0:01:45]}  Qc8 {[%clk 0:02:06]} 23. Qc6 {[%clk 0:01:38]}  Qe8 {[%clk 0:02:06]} 24. Qc4 {[%clk 0:01:32]}  g4 {[%clk 0:01:57]} 25. Rad1 {[%clk 0:01:31]}  Rd8 {[%clk 0:01:55]} 26. Bh4 {[%clk 0:01:23]}  Rh8 {[%clk 0:01:43]} 27. Qc3 {[%clk 0:01:21]}  Qe6 {[%clk 0:01:38]} 28. Qe3 {[%clk 0:01:20]}  Nh7 {[%clk 0:01:28]} 29. Bxd8 {[%clk 0:01:20]}  Rxd8 {[%clk 0:01:28]} 30. fxg4 {[%clk 0:01:19]}  Ng5 {[%clk 0:01:12]} 31. gxh5+ {[%clk 0:01:15]} 1-0


[Site "https://www.chess.com"]

[Event "Titled Tuesday Blitz June 13 Early 2023"]
[White "Tinmaz, Kerem"]
[Black "Vidruska, Renate"]
[WhiteFideId "44559151"]
[BlackFideId "11601841"]
[WhiteElo "2153"]
[BlackElo "1976"]
[Result "1-0"]
[Round "6"]
[TimeControl "180+2"]
[Date "2023.06.13"]
[WhiteClock "0:00:09"]
[BlackClock "0:00:00"]
[Board "166"]

1. e4 {[%clk 0:03:00]}  d5 {[%clk 0:02:55]} 2. exd5 {[%clk 0:03:00]}  Qxd5 {[%clk 0:02:53]} 3. Nc3 {[%clk 0:03:00]}  Qa5 {[%clk 0:02:53]} 4. d4 {[%clk 0:03:00]}  c6 {[%clk 0:02:52]} 5. Nf3 {[%clk 0:03:00]}  Bf5 {[%clk 0:02:51]} 6. Bc4 {[%clk 0:02:59]}  e6 {[%clk 0:02:51]} 7. O-O {[%clk 0:02:59]}  Qc7 {[%clk 0:02:49]} 8. Ne5 {[%clk 0:02:49]}  Nd7 {[%clk 0:02:42]} 9. Nxd7 {[%clk 0:02:25]}  Qxd7 {[%clk 0:02:41]} 10. Bf4 {[%clk 0:02:26]}  O-O-O {[%clk 0:02:38]} 11. Ne2 {[%clk 0:02:11]}  Bd6 {[%clk 0:02:36]} 12. c3 {[%clk 0:02:05]}  Bxf4 {[%clk 0:02:34]} 13. Nxf4 {[%clk 0:02:06]}  Nf6 {[%clk 0:02:31]} 14. a4 {[%clk 0:01:50]}  Qc7 {[%clk 0:02:23]} 15. Qf3 {[%clk 0:01:24]}  Be4 {[%clk 0:02:14]} 16. Qe3 {[%clk 0:01:19]}  g5 {[%clk 0:02:09]} 17. Nh5 {[%clk 0:01:09]}  Ng4 {[%clk 0:01:36]} 18. Qg3 {[%clk 0:01:01]}  Qxg3 {[%clk 0:01:35]} 19. hxg3 {[%clk 0:01:01]}  Bg6 {[%clk 0:01:34]} 20. Ng7 {[%clk 0:00:53]}  Rhg8 {[%clk 0:01:26]} 21. Nxe6 {[%clk 0:00:53]}  Rde8 {[%clk 0:01:01]} 22. Nxg5 {[%clk 0:00:46]}  Re7 {[%clk 0:00:58]} 23. Nf3 {[%clk 0:00:45]}  Rge8 {[%clk 0:00:56]} 24. Rfe1 {[%clk 0:00:44]}  Rxe1+ {[%clk 0:00:55]} 25. Rxe1 {[%clk 0:00:45]}  Rxe1+ {[%clk 0:00:54]} 26. Nxe1 {[%clk 0:00:46]}  h5 {[%clk 0:00:52]} 27. Nd3 {[%clk 0:00:40]}  Kd7 {[%clk 0:00:36]} 28. Nf4 {[%clk 0:00:38]}  Ke7 {[%clk 0:00:32]} 29. Be2 {[%clk 0:00:32]}  Nf6 {[%clk 0:00:31]} 30. Kf1 {[%clk 0:00:26]}  Kd6 {[%clk 0:00:21]} 31. Ke1 {[%clk 0:00:26]}  c5 {[%clk 0:00:19]} 32. dxc5+ {[%clk 0:00:24]}  Kxc5 {[%clk 0:00:19]} 33. Kd2 {[%clk 0:00:25]}  Ne4+ {[%clk 0:00:19]} 34. Ke3 {[%clk 0:00:25]}  Nf6 {[%clk 0:00:19]} 35. Nxg6 {[%clk 0:00:24]}  fxg6 {[%clk 0:00:18]} 36. b4+ {[%clk 0:00:25]}  Kd5 {[%clk 0:00:18]} 37. Bd3 {[%clk 0:00:26]}  g5 {[%clk 0:00:18]} 38. c4+ {[%clk 0:00:17]}  Ke5 {[%clk 0:00:19]} 39. f4+ {[%clk 0:00:17]}  gxf4+ {[%clk 0:00:18]} 40. gxf4+ {[%clk 0:00:18]}  Ke6 {[%clk 0:00:19]} 41. Kd4 {[%clk 0:00:15]}  Ng4 {[%clk 0:00:18]} 42. Be2 {[%clk 0:00:15]}  Nf2 {[%clk 0:00:17]} 43. Bxh5 {[%clk 0:00:15]}  Kf5 {[%clk 0:00:18]} 44. Ke3 {[%clk 0:00:09]}  Nh1 {[%clk 0:00:15]} 45. g4+ {[%clk 0:00:08]}  Kf6 {[%clk 0:00:15]} 46. Kf3 {[%clk 0:00:09]}  b6 {[%clk 0:00:00]} 47. Kg2 {[%clk 0:00:09]} 1-0


[Site "https://www.chess.com"]

[Event "Titled Tuesday Blitz June 13 Early 2023"]
[White "Winslow, Elliott"]
[Black "Venkatesh, M.R."]
[WhiteFideId "2002523"]
[BlackFideId "5005779"]
[WhiteElo "2045"]
[BlackElo "2450"]
[Result "0-1"]
[Round "6"]
[TimeControl "180+2"]
[Date "2023.06.13"]
[WhiteClock "0:01:03"]
[BlackClock "0:00:56"]
[Board "171"]

1. e4 {[%clk 0:03:00]}  e5 {[%clk 0:02:51]} 2. Nf3 {[%clk 0:03:00]}  Nc6 {[%clk 0:02:47]} 3. Bb5 {[%clk 0:02:59]}  a6 {[%clk 0:02:41]} 4. Ba4 {[%clk 0:02:57]}  Nf6 {[%clk 0:02:37]} 5. O-O {[%clk 0:02:55]}  Bc5 {[%clk 0:02:35]} 6. c3 {[%clk 0:02:51]}  b5 {[%clk 0:02:28]} 7. Bb3 {[%clk 0:02:50]}  d6 {[%clk 0:02:25]} 8. d4 {[%clk 0:02:49]}  Bb6 {[%clk 0:02:20]} 9. a4 {[%clk 0:02:48]}  Bg4 {[%clk 0:02:13]} 10. axb5 {[%clk 0:02:38]}  axb5 {[%clk 0:02:06]} 11. Rxa8 {[%clk 0:02:36]}  Qxa8 {[%clk 0:02:01]} 12. d5 {[%clk 0:02:34]}  Ne7 {[%clk 0:01:57]} 13. h3 {[%clk 0:02:28]}  Bh5 {[%clk 0:01:51]} 14. Re1 {[%clk 0:02:19]}  Qc8 {[%clk 0:01:26]} 15. Qd3 {[%clk 0:02:08]}  O-O {[%clk 0:01:23]} 16. Nbd2 {[%clk 0:01:48]}  c6 {[%clk 0:01:17]} 17. dxc6 {[%clk 0:01:46]}  Qxc6 {[%clk 0:01:16]} 18. Nf1 {[%clk 0:01:40]}  Bg6 {[%clk 0:01:08]} 19. Ng3 {[%clk 0:01:39]}  Nd7 {[%clk 0:01:08]} 20. Bg5 {[%clk 0:01:27]}  Nc5 {[%clk 0:01:05]} 21. Qc2 {[%clk 0:01:26]}  Re8 {[%clk 0:01:01]} 22. Bxe7 {[%clk 0:01:21]}  Rxe7 {[%clk 0:00:59]} 23. Bd5 {[%clk 0:01:03]}  Qxd5 {[%clk 0:00:56]} 0-1


[Site "https://www.chess.com"]

[Event "Titled Tuesday Blitz June 13 Early 2023"]
[White "Seletsky, Grigory"]
[Black "rionelG"]
[WhiteFideId "14112191"]
[WhiteElo "2491"]
[BlackElo "2227"]
[Result "1-0"]
[Round "6"]
[TimeControl "180+2"]
[Date "2023.06.13"]
[WhiteClock "0:00:02"]
[BlackClock "0:00:00"]
[Board "174"]

1. e4 {[%clk 0:02:58]}  c5 {[%clk 0:02:59]} 2. Nc3 {[%clk 0:02:57]}  d6 {[%clk 0:02:59]} 3. Bc4 {[%clk 0:02:55]}  a6 {[%clk 0:02:55]} 4. a4 {[%clk 0:02:54]}  e6 {[%clk 0:02:54]} 5. d3 {[%clk 0:02:54]}  Nc6 {[%clk 0:02:52]} 6. f4 {[%clk 0:02:53]}  Nf6 {[%clk 0:02:48]} 7. Nf3 {[%clk 0:02:53]}  d5 {[%clk 0:02:49]} 8. Bb3 {[%clk 0:02:47]}  dxe4 {[%clk 0:02:46]} 9. dxe4 {[%clk 0:02:36]}  Qxd1+ {[%clk 0:02:45]} 10. Kxd1 {[%clk 0:02:36]}  Be7 {[%clk 0:02:27]} 11. e5 {[%clk 0:02:35]}  Ng4 {[%clk 0:02:21]} 12. Ke2 {[%clk 0:02:34]}  Nh6 {[%clk 0:02:21]} 13. Ne4 {[%clk 0:02:32]}  Nf5 {[%clk 0:02:20]} 14. c3 {[%clk 0:02:33]}  h5 {[%clk 0:02:19]} 15. g3 {[%clk 0:02:33]}  b6 {[%clk 0:02:18]} 16. Bd2 {[%clk 0:02:32]}  Bb7 {[%clk 0:02:18]} 17. h3 {[%clk 0:02:32]}  Na5 {[%clk 0:02:04]} 18. Bc2 {[%clk 0:02:30]}  Bxe4 {[%clk 0:02:03]} 19. Bxe4 {[%clk 0:02:31]}  Nxg3+ {[%clk 0:02:02]} 20. Ke3 {[%clk 0:02:32]}  Nc4+ {[%clk 0:01:55]} 21. Kd3 {[%clk 0:02:30]}  O-O-O+ {[%clk 0:01:36]} 22. Kxc4 {[%clk 0:02:27]}  Nxe4 {[%clk 0:01:35]} 23. Be3 {[%clk 0:02:25]}  Ng3 {[%clk 0:01:31]} 24. Rhg1 {[%clk 0:02:04]}  Nf5 {[%clk 0:01:28]} 25. Bf2 {[%clk 0:02:04]}  Kb7 {[%clk 0:01:26]} 26. Rgd1 {[%clk 0:01:56]}  Kc6 {[%clk 0:01:26]} 27. b4 {[%clk 0:01:53]}  b5+ {[%clk 0:01:19]} 28. Kb3 {[%clk 0:01:44]}  c4+ {[%clk 0:01:17]} 29. Kc2 {[%clk 0:01:45]}  Rxd1 {[%clk 0:01:17]} 30. axb5+ {[%clk 0:01:44]}  axb5 {[%clk 0:01:16]} 31. Kxd1 {[%clk 0:01:44]}  Rd8+ {[%clk 0:01:10]} 32. Ke2 {[%clk 0:01:35]}  Rd3 {[%clk 0:01:07]} 33. Ra6+ {[%clk 0:01:26]}  Kd5 {[%clk 0:00:53]} 34. Be1 {[%clk 0:01:03]}  Ke4 {[%clk 0:00:39]} 35. Ng5+ {[%clk 0:00:44]}  Bxg5 {[%clk 0:00:39]} 36. fxg5 {[%clk 0:00:45]}  Kxe5 {[%clk 0:00:36]} 37. Rb6 {[%clk 0:00:44]}  Rd5 {[%clk 0:00:35]} 38. Rb7 {[%clk 0:00:42]}  f6 {[%clk 0:00:35]} 39. g6 {[%clk 0:00:40]}  Kf4 {[%clk 0:00:30]} 40. h4 {[%clk 0:00:21]}  Kg4 {[%clk 0:00:23]} 41. Rf7 {[%clk 0:00:20]}  e5 {[%clk 0:00:12]} 42. Rb7 {[%clk 0:00:20]}  e4 {[%clk 0:00:12]} 43. Rf7 {[%clk 0:00:19]}  Nxh4 {[%clk 0:00:11]} 44. Rxg7 {[%clk 0:00:18]}  Rg5 {[%clk 0:00:07]} 45. Bxh4 {[%clk 0:00:16]}  Kxh4 {[%clk 0:00:07]} 46. Ke3 {[%clk 0:00:17]}  f5 {[%clk 0:00:07]} 47. Kf4 {[%clk 0:00:17]}  Rg4+ {[%clk 0:00:07]} 48. Kxf5 {[%clk 0:00:16]}  e3 {[%clk 0:00:07]} 49. Re7 {[%clk 0:00:17]}  Rg3 {[%clk 0:00:07]} 50. Kf6 {[%clk 0:00:13]}  Kh3 {[%clk 0:00:06]} 51. g7 {[%clk 0:00:12]}  Kg2 {[%clk 0:00:06]} 52. Kf7 {[%clk 0:00:09]}  Kf2 {[%clk 0:00:06]} 53. Re6 {[%clk 0:00:09]}  e2 {[%clk 0:00:05]} 54. Rf6+ {[%clk 0:00:09]}  Rf3 {[%clk 0:00:04]} 55. Rxf3+ {[%clk 0:00:08]}  Kxf3 {[%clk 0:00:05]} 56. g8=Q {[%clk 0:00:08]}  e1=Q {[%clk 0:00:06]} 57. Qg6 {[%clk 0:00:06]}  Qh4 {[%clk 0:00:03]} 58. Qc6+ {[%clk 0:00:04]}  Qe4 {[%clk 0:00:03]} 59. Qxb5 {[%clk 0:00:04]}  h4 {[%clk 0:00:03]} 60. Qh5+ {[%clk 0:00:03]}  Qg4 {[%clk 0:00:03]} 61. Qd5+ {[%clk 0:00:03]}  Kg3 {[%clk 0:00:04]} 62. b5 {[%clk 0:00:02]}  h3 {[%clk 0:00:00]} 63. b6 {[%clk 0:00:02]} 1-0


[Site "https://www.chess.com"]

[Event "Titled Tuesday Blitz June 13 Early 2023"]
[White "Luxama, Jacques Muller"]
[Black "Matyukov, Petr"]
[WhiteFideId "11900113"]
[BlackFideId "4103688"]
[WhiteElo "1931"]
[BlackElo "2278"]
[Result "0-1"]
[Round "6"]
[TimeControl "180+2"]
[Date "2023.06.13"]
[WhiteClock "0:00:00"]
[BlackClock "0:00:09"]
[Board "175"]

1. d4 {[%clk 0:02:57]}  Nf6 {[%clk 0:03:00]} 2. c4 {[%clk 0:02:56]}  c5 {[%clk 0:03:00]} 3. dxc5 {[%clk 0:02:50]}  e6 {[%clk 0:02:57]} 4. Nf3 {[%clk 0:02:44]}  Bxc5 {[%clk 0:02:56]} 5. e3 {[%clk 0:02:41]}  O-O {[%clk 0:02:55]} 6. Be2 {[%clk 0:02:39]}  b6 {[%clk 0:02:54]} 7. O-O {[%clk 0:02:37]}  Bb7 {[%clk 0:02:54]} 8. a3 {[%clk 0:02:35]}  d5 {[%clk 0:02:53]} 9. Nc3 {[%clk 0:02:33]}  Nbd7 {[%clk 0:02:27]} 10. b4 {[%clk 0:02:30]}  Be7 {[%clk 0:02:26]} 11. Bb2 {[%clk 0:02:30]}  Rc8 {[%clk 0:02:26]} 12. Rc1 {[%clk 0:02:29]}  dxc4 {[%clk 0:02:24]} 13. Nb5 {[%clk 0:02:20]}  a6 {[%clk 0:02:15]} 14. Nd6 {[%clk 0:02:14]}  Bxd6 {[%clk 0:02:13]} 15. Qxd6 {[%clk 0:02:15]}  b5 {[%clk 0:02:13]} 16. Rfd1 {[%clk 0:02:12]}  Qb6 {[%clk 0:02:05]} 17. Qg3 {[%clk 0:02:00]}  Qc7 {[%clk 0:01:42]} 18. Ne5 {[%clk 0:01:54]}  Rfd8 {[%clk 0:01:25]} 19. Nxd7 {[%clk 0:01:17]}  Rxd7 {[%clk 0:01:16]} 20. Be5 {[%clk 0:01:06]}  Rxd1+ {[%clk 0:01:10]} 21. Rxd1 {[%clk 0:00:58]}  Qe7 {[%clk 0:01:04]} 22. Bd6 {[%clk 0:00:17]}  Qe8 {[%clk 0:00:53]} 23. Be5 {[%clk 0:00:15]}  Kh8 {[%clk 0:00:35]} 24. Qg5 {[%clk 0:00:11]}  h6 {[%clk 0:00:22]} 25. Qh4 {[%clk 0:00:06]}  Qe7 {[%clk 0:00:16]} 26. Rd7 {[%clk 0:00:04]}  Qxd7 {[%clk 0:00:15]} 27. Bxf6 {[%clk 0:00:00]}  Kg8 {[%clk 0:00:09]} 0-1


[Site "https://www.chess.com"]

[Event "Titled Tuesday Blitz June 13 Early 2023"]
[White "Chandreyee, Hajra"]
[Black "Xavier_mompel"]
[WhiteFideId "5056535"]
[WhiteElo "1725"]
[BlackElo "2197"]
[Result "1-0"]
[Round "6"]
[TimeControl "180+2"]
[Date "2023.06.13"]
[WhiteClock "0:00:39"]
[BlackClock "0:00:00"]
[Board "176"]

1. e4 {[%clk 0:03:00]}  c5 {[%clk 0:02:59]} 2. Nf3 {[%clk 0:02:59]}  e6 {[%clk 0:02:56]} 3. d4 {[%clk 0:02:59]}  cxd4 {[%clk 0:02:54]} 4. Nxd4 {[%clk 0:02:59]}  Nc6 {[%clk 0:02:54]} 5. Nc3 {[%clk 0:02:55]}  Qc7 {[%clk 0:02:54]} 6. Be3 {[%clk 0:02:52]}  a6 {[%clk 0:02:53]} 7. f4 {[%clk 0:02:48]}  d6 {[%clk 0:02:41]} 8. Qf3 {[%clk 0:02:46]}  Nf6 {[%clk 0:02:32]} 9. O-O-O {[%clk 0:02:45]}  Be7 {[%clk 0:02:30]} 10. Rg1 {[%clk 0:02:41]}  Bd7 {[%clk 0:02:10]} 11. g4 {[%clk 0:02:41]}  h6 {[%clk 0:02:09]} 12. g5 {[%clk 0:02:38]}  hxg5 {[%clk 0:02:07]} 13. fxg5 {[%clk 0:02:38]}  Ne5 {[%clk 0:01:50]} 14. Qe2 {[%clk 0:02:21]}  Nh5 {[%clk 0:01:37]} 15. Bh3 {[%clk 0:02:14]}  b5 {[%clk 0:01:34]} 16. a3 {[%clk 0:02:13]}  Rc8 {[%clk 0:01:33]} 17. g6 {[%clk 0:02:10]}  Nxg6 {[%clk 0:01:25]} 18. Bxe6 {[%clk 0:02:05]}  Bxe6 {[%clk 0:00:41]} 19. Nxe6 {[%clk 0:02:01]}  fxe6 {[%clk 0:00:37]} 20. Rxg6 {[%clk 0:02:01]}  Bf6 {[%clk 0:00:34]} 21. Bd4 {[%clk 0:01:57]}  Kf7 {[%clk 0:00:29]} 22. Rg4 {[%clk 0:01:46]}  Qc6 {[%clk 0:00:06]} 23. e5 {[%clk 0:01:30]}  dxe5 {[%clk 0:00:05]} 24. Bxe5 {[%clk 0:01:30]}  Bxe5 {[%clk 0:00:06]} 25. Qxe5 {[%clk 0:01:28]}  Nf6 {[%clk 0:00:06]} 26. Rdg1 {[%clk 0:01:24]}  Nxg4 {[%clk 0:00:05]} 27. Rxg4 {[%clk 0:01:20]}  Rh7 {[%clk 0:00:03]} 28. Rf4+ {[%clk 0:01:15]}  Kg8 {[%clk 0:00:03]} 29. Rf2 {[%clk 0:01:10]}  Rd8 {[%clk 0:00:03]} 30. Ne4 {[%clk 0:01:07]}  a5 {[%clk 0:00:02]} 31. Rg2 {[%clk 0:01:04]}  Rc8 {[%clk 0:00:02]} 32. c3 {[%clk 0:01:03]}  b4 {[%clk 0:00:01]} 33. Rc2 {[%clk 0:00:52]}  Kh8 {[%clk 0:00:01]} 34. Rg2 {[%clk 0:00:41]}  bxc3 {[%clk 0:00:00]} 35. bxc3 {[%clk 0:00:39]} 1-0


[Site "https://www.chess.com"]

[Event "Titled Tuesday Blitz June 13 Early 2023"]
[White "le-castor-faineant"]
[Black "Ramirez Vido, Robert Yorisan"]
[BlackFideId "3513823"]
[WhiteElo "2191"]
[BlackElo "2378"]
[Result "1-0"]
[Round "6"]
[TimeControl "180+2"]
[Date "2023.06.13"]
[WhiteClock "0:00:45"]
[BlackClock "0:00:00"]
[Board "177"]

1. e4 {[%clk 0:02:57]}  d6 {[%clk 0:03:00]} 2. d4 {[%clk 0:02:54]}  Nf6 {[%clk 0:02:58]} 3. Nc3 {[%clk 0:02:55]}  g6 {[%clk 0:02:58]} 4. Bg5 {[%clk 0:02:48]}  Bg7 {[%clk 0:02:56]} 5. e5 {[%clk 0:02:47]}  dxe5 {[%clk 0:02:55]} 6. dxe5 {[%clk 0:02:45]}  Ng4 {[%clk 0:02:52]} 7. Qxd8+ {[%clk 0:02:37]}  Kxd8 {[%clk 0:02:52]} 8. Nf3 {[%clk 0:02:27]}  Nxe5 {[%clk 0:02:48]} 9. Nxe5 {[%clk 0:02:13]}  Bxe5 {[%clk 0:02:49]} 10. Nd5 {[%clk 0:02:12]}  f6 {[%clk 0:02:21]} 11. Be3 {[%clk 0:02:08]}  Be6 {[%clk 0:02:15]} 12. O-O-O {[%clk 0:02:07]}  Bxd5 {[%clk 0:02:03]} 13. Rxd5+ {[%clk 0:02:04]}  Bd6 {[%clk 0:02:03]} 14. Bc4 {[%clk 0:01:57]}  c6 {[%clk 0:02:02]} 15. Rd2 {[%clk 0:01:55]}  Kc7 {[%clk 0:02:02]} 16. Be6 {[%clk 0:01:54]}  Na6 {[%clk 0:01:56]} 17. c4 {[%clk 0:01:46]}  Rhd8 {[%clk 0:01:50]} 18. Rhd1 {[%clk 0:01:40]}  b6 {[%clk 0:01:17]} 19. a3 {[%clk 0:01:33]}  Kb7 {[%clk 0:00:14]} 20. Kc2 {[%clk 0:00:53]}  Bc7 {[%clk 0:00:10]} 21. Rd7 {[%clk 0:00:50]}  Rxd7 {[%clk 0:00:10]} 22. Rxd7 {[%clk 0:00:48]}  Re8 {[%clk 0:00:05]} 23. Bf4 {[%clk 0:00:47]}  g5 {[%clk 0:00:00]} 24. Bg3 {[%clk 0:00:45]} 1-0


[Site "https://www.chess.com"]

[Event "Titled Tuesday Blitz June 13 Early 2023"]
[White "Davidson, Kevin"]
[Black "Fabris, Alberto"]
[WhiteFideId "2056810"]
[BlackFideId "801348"]
[WhiteElo "2151"]
[BlackElo "2175"]
[Result "1-0"]
[Round "6"]
[TimeControl "180+2"]
[Date "2023.06.13"]
[WhiteClock "0:00:07"]
[BlackClock "0:00:52"]
[Board "178"]

1. e4 {[%clk 0:03:00]}  c5 {[%clk 0:03:00]} 2. Nf3 {[%clk 0:03:00]}  d6 {[%clk 0:03:00]} 3. d4 {[%clk 0:02:54]}  cxd4 {[%clk 0:03:01]} 4. Nxd4 {[%clk 0:02:55]}  Nf6 {[%clk 0:03:01]} 5. Nc3 {[%clk 0:02:55]}  a6 {[%clk 0:03:01]} 6. h3 {[%clk 0:02:38]}  e6 {[%clk 0:03:00]} 7. g4 {[%clk 0:02:37]}  Be7 {[%clk 0:02:58]} 8. Bg2 {[%clk 0:02:37]}  Qc7 {[%clk 0:02:57]} 9. O-O {[%clk 0:02:35]}  Nc6 {[%clk 0:02:54]} 10. Be3 {[%clk 0:02:34]}  O-O {[%clk 0:02:47]} 11. g5 {[%clk 0:02:31]}  Nd7 {[%clk 0:02:47]} 12. f4 {[%clk 0:02:28]}  Nxd4 {[%clk 0:02:35]} 13. Bxd4 {[%clk 0:02:23]}  b5 {[%clk 0:02:29]} 14. a3 {[%clk 0:02:12]}  Bb7 {[%clk 0:02:29]} 15. Qe2 {[%clk 0:02:00]}  Nb6 {[%clk 0:02:17]} 16. Rad1 {[%clk 0:01:46]}  Rad8 {[%clk 0:02:12]} 17. h4 {[%clk 0:01:44]}  d5 {[%clk 0:02:09]} 18. Qf2 {[%clk 0:01:32]}  Nc4 {[%clk 0:01:59]} 19. exd5 {[%clk 0:01:31]}  exd5 {[%clk 0:01:53]} 20. f5 {[%clk 0:01:17]}  Bd6 {[%clk 0:01:44]} 21. Nxd5 {[%clk 0:00:34]}  Bxd5 {[%clk 0:01:42]} 22. Bxd5 {[%clk 0:00:34]}  Bg3 {[%clk 0:01:39]} 23. Qg2 {[%clk 0:00:23]}  Bxh4 {[%clk 0:01:38]} 24. g6 {[%clk 0:00:18]}  Qg3 {[%clk 0:01:32]} 25. gxf7+ {[%clk 0:00:13]}  Kh8 {[%clk 0:01:32]} 26. Qxg3 {[%clk 0:00:12]}  Bxg3 {[%clk 0:01:31]} 27. Be6 {[%clk 0:00:11]}  Bh4 {[%clk 0:01:26]} 28. Bc5 {[%clk 0:00:11]}  Nxb2 {[%clk 0:01:22]} 29. Bxf8 {[%clk 0:00:10]}  Rxf8 {[%clk 0:01:21]} 30. Rd7 {[%clk 0:00:09]}  Bf6 {[%clk 0:01:17]} 31. Kg2 {[%clk 0:00:08]}  Nc4 {[%clk 0:01:16]} 32. Bxc4 {[%clk 0:00:07]}  bxc4 {[%clk 0:01:16]} 33. Re1 {[%clk 0:00:08]}  g6 {[%clk 0:01:13]} 34. Re8 {[%clk 0:00:07]}  Kg7 {[%clk 0:01:12]} 35. fxg6 {[%clk 0:00:07]}  hxg6 {[%clk 0:01:12]} 36. Rxf8 {[%clk 0:00:06]}  Kxf8 {[%clk 0:01:10]} 37. a4 {[%clk 0:00:07]}  Be7 {[%clk 0:01:05]} 38. Ra7 {[%clk 0:00:06]}  Kxf7 {[%clk 0:01:05]} 39. Rxa6 {[%clk 0:00:06]}  Bf6 {[%clk 0:01:00]} 40. Rc6 {[%clk 0:00:06]}  c3 {[%clk 0:01:00]} 41. a5 {[%clk 0:00:06]}  Bd4 {[%clk 0:01:00]} 42. a6 {[%clk 0:00:06]}  Ke7 {[%clk 0:00:58]} 43. a7 {[%clk 0:00:06]}  Bxa7 {[%clk 0:00:55]} 44. Rc7+ {[%clk 0:00:06]}  Kd6 {[%clk 0:00:52]} 45. Rxa7 {[%clk 0:00:07]} 1-0


[Site "https://www.chess.com"]

[Event "Titled Tuesday Blitz June 13 Early 2023"]
[White "Samarth J Rao"]
[Black "Gertler, David"]
[WhiteFideId "46652370"]
[BlackFideId "2017377"]
[WhiteElo "1564"]
[BlackElo "2326"]
[Result "1-0"]
[Round "6"]
[TimeControl "180+2"]
[Date "2023.06.13"]
[WhiteClock "0:00:05"]
[BlackClock "0:00:00"]
[Board "182"]

1. Nf3 {[%clk 0:03:00]}  d6 {[%clk 0:02:58]} 2. c4 {[%clk 0:03:01]}  e5 {[%clk 0:02:58]} 3. Nc3 {[%clk 0:02:59]}  f5 {[%clk 0:02:58]} 4. d3 {[%clk 0:02:57]}  Nf6 {[%clk 0:02:58]} 5. g3 {[%clk 0:02:57]}  Be7 {[%clk 0:02:57]} 6. Bg2 {[%clk 0:02:58]}  O-O {[%clk 0:02:58]} 7. O-O {[%clk 0:02:58]}  Qe8 {[%clk 0:02:58]} 8. Nd2 {[%clk 0:02:58]}  Qh5 {[%clk 0:02:52]} 9. e3 {[%clk 0:02:55]}  Qxd1 {[%clk 0:02:49]} 10. Rxd1 {[%clk 0:02:56]}  Nc6 {[%clk 0:02:49]} 11. a3 {[%clk 0:02:55]}  Nd8 {[%clk 0:02:44]} 12. b4 {[%clk 0:02:53]}  g5 {[%clk 0:02:44]} 13. b5 {[%clk 0:02:51]}  Ne6 {[%clk 0:02:41]} 14. Nb3 {[%clk 0:02:48]}  Rb8 {[%clk 0:02:38]} 15. a4 {[%clk 0:02:46]}  f4 {[%clk 0:02:38]} 16. a5 {[%clk 0:02:38]}  g4 {[%clk 0:02:33]} 17. exf4 {[%clk 0:02:26]}  exf4 {[%clk 0:02:34]} 18. Bd5 {[%clk 0:02:26]}  fxg3 {[%clk 0:02:28]} 19. fxg3 {[%clk 0:02:23]}  Nxd5 {[%clk 0:02:23]} 20. Nxd5 {[%clk 0:02:23]}  Bd8 {[%clk 0:02:22]} 21. Be3 {[%clk 0:02:16]}  b6 {[%clk 0:02:14]} 22. axb6 {[%clk 0:02:12]}  axb6 {[%clk 0:02:15]} 23. Nd4 {[%clk 0:01:59]}  Nxd4 {[%clk 0:02:06]} 24. Bxd4 {[%clk 0:01:59]}  Rf3 {[%clk 0:01:53]} 25. Ra7 {[%clk 0:01:35]}  Bb7 {[%clk 0:01:50]} 26. Ne3 {[%clk 0:01:18]}  Bf6 {[%clk 0:01:33]} 27. Bxf6 {[%clk 0:01:13]}  Rxe3 {[%clk 0:01:34]} 28. Bd4 {[%clk 0:01:02]}  Re2 {[%clk 0:01:24]} 29. Bf2 {[%clk 0:01:02]}  Kf7 {[%clk 0:00:59]} 30. Re1 {[%clk 0:00:48]}  Rxe1+ {[%clk 0:00:58]} 31. Bxe1 {[%clk 0:00:48]}  Ke6 {[%clk 0:00:58]} 32. Bc3 {[%clk 0:00:45]}  Kd7 {[%clk 0:00:57]} 33. Kf2 {[%clk 0:00:26]}  Bf3 {[%clk 0:00:54]} 34. Bd4 {[%clk 0:00:21]}  d5 {[%clk 0:00:43]} 35. Be5 {[%clk 0:00:19]}  Rc8 {[%clk 0:00:40]} 36. Ke3 {[%clk 0:00:17]}  dxc4 {[%clk 0:00:37]} 37. dxc4 {[%clk 0:00:16]}  Bg2 {[%clk 0:00:21]} 38. Bf4 {[%clk 0:00:15]}  Bf1 {[%clk 0:00:21]} 39. Kd4 {[%clk 0:00:14]}  Be2 {[%clk 0:00:18]} 40. c5 {[%clk 0:00:11]}  bxc5+ {[%clk 0:00:17]} 41. Kxc5 {[%clk 0:00:12]}  Kd8 {[%clk 0:00:15]} 42. Bg5+ {[%clk 0:00:09]}  Ke8 {[%clk 0:00:11]} 43. b6 {[%clk 0:00:07]}  cxb6+ {[%clk 0:00:11]} 44. Kd6 {[%clk 0:00:08]}  Bb5 {[%clk 0:00:04]} 45. Rxh7 {[%clk 0:00:04]}  Rc6+ {[%clk 0:00:03]} 46. Kd5 {[%clk 0:00:04]}  Rg6 {[%clk 0:00:03]} 47. Rh8+ {[%clk 0:00:04]}  Kf7 {[%clk 0:00:00]} 48. Bf4 {[%clk 0:00:05]} 1-0


[Site "https://www.chess.com"]